[Event "Early-Titled-Tuesday-Blitz-March-26-2024"]
[Site "Chess.com"]
[Date "2024.03.26"]
[Round "1"]
[White "Susal_De_Silva"]
[Black "JoliyRoger"]
[Result "1-0"]
[WhiteElo "2762"]
[BlackElo "2418"]
[TimeControl "180+1"]
[EndTime "8:06:38 PDT"]
[Termination "Susal_De_Silva won on time"]

1. Nf3 {[%clk 0:03:00.9]} 1... Nf6 {[%clk 0:02:59]} 2. e3 {[%clk 0:03:01.1]}
2... c6 {[%clk 0:02:59.9]} 3. c4 {[%clk 0:03:00.1]} 3... d5 {[%clk 0:02:58.6]}
4. Nc3 {[%clk 0:03:00.5]} 4... e6 {[%clk 0:02:55.3]} 5. b3 {[%clk 0:03:00.7]}
5... Be7 {[%clk 0:02:54.4]} 6. Bb2 {[%clk 0:03:00.9]} 6... O-O {[%clk
0:02:55.3]} 7. Qc2 {[%clk 0:02:58.5]} 7... Nbd7 {[%clk 0:02:34.7]} 8. Be2 {[%clk
0:02:57.8]} 8... b6 {[%clk 0:02:31.9]} 9. O-O {[%clk 0:02:57.2]} 9... Bb7 {[%clk
0:02:31.3]} 10. d4 {[%clk 0:02:57.1]} 10... Rc8 {[%clk 0:02:30.1]} 11. Rad1
{[%clk 0:02:56.8]} 11... Qc7 {[%clk 0:02:30.4]} 12. e4 {[%clk 0:02:56.4]} 12...
dxe4 {[%clk 0:02:24.7]} 13. Nxe4 {[%clk 0:02:57.2]} 13... Rfd8 {[%clk
0:02:24.1]} 14. Nxf6+ {[%clk 0:02:45.8]} 14... Bxf6 {[%clk 0:02:23.5]} 15. Nd2
{[%clk 0:02:37.8]} 15... c5 {[%clk 0:02:08.5]} 16. Ne4 {[%clk 0:02:36.4]} 16...
Bxd4 {[%clk 0:01:51.1]} 17. Bxd4 {[%clk 0:02:31.6]} 17... cxd4 {[%clk
0:01:50.9]} 18. Rxd4 {[%clk 0:02:31.3]} 18... Bxe4 {[%clk 0:01:17.7]} 19. Qxe4
{[%clk 0:02:32.2]} 19... Nf6 {[%clk 0:01:17.2]} 20. Rxd8+ {[%clk 0:02:32.1]}
20... Rxd8 {[%clk 0:01:16.3]} 21. Qc2 {[%clk 0:02:33]} 21... e5 {[%clk
0:01:11.1]} 22. h3 {[%clk 0:02:31.6]} 22... g6 {[%clk 0:01:09.3]} 23. Rd1 {[%clk
0:02:31.7]} 23... Rd4 {[%clk 0:01:07.2]} 24. Rxd4 {[%clk 0:02:31.1]} 24... exd4
{[%clk 0:01:06.9]} 25. b4 {[%clk 0:02:30.2]} 25... a5 {[%clk 0:01:03.8]} 26. a3
{[%clk 0:02:24.8]} 26... axb4 {[%clk 0:01:03.5]} 27. axb4 {[%clk 0:02:25.7]}
27... Nd7 {[%clk 0:01:00.4]} 28. Bf3 {[%clk 0:02:18.5]} 28... Ne5 {[%clk
0:00:58.3]} 29. Bd5 {[%clk 0:02:18.8]} 29... Qd6 {[%clk 0:00:58.9]} 30. Qe4
{[%clk 0:02:14.7]} 30... d3 {[%clk 0:00:48.8]} 31. Qd4 {[%clk 0:02:13.6]} 31...
Kf8 {[%clk 0:00:31.2]} 32. c5 {[%clk 0:02:02.2]} 32... bxc5 {[%clk 0:00:26.6]}
33. bxc5 {[%clk 0:02:03.1]} 33... Qc7 {[%clk 0:00:20.3]} 34. f4 {[%clk
0:02:02.4]} 34... Nd7 {[%clk 0:00:15]} 35. c6 {[%clk 0:02:00.4]} 35... Qb6
{[%clk 0:00:15.2]} 36. Qf2 {[%clk 0:01:39.1]} 36... Qxf2+ {[%clk 0:00:12.2]} 37.
Kxf2 {[%clk 0:01:38.5]} 37... Nb6 {[%clk 0:00:13.1]} 38. Be4 {[%clk 0:01:25.1]}
38... d2 {[%clk 0:00:10.8]} 39. Ke2 {[%clk 0:01:25.2]} 39... Ke7 {[%clk
0:00:04.3]} 40. Kxd2 {[%clk 0:01:25.4]} 40... Kd6 {[%clk 0:00:04.5]} 41. Kc3
{[%clk 0:01:19]} 1-0

[Event "Early-Titled-Tuesday-Blitz-March-26-2024"]
[Site "Chess.com"]
[Date "2024.03.26"]
[Round "1"]
[White "a_kandil"]
[Black "Angry_Twin"]
[Result "0-1"]
[WhiteElo "2508"]
[BlackElo "2914"]
[TimeControl "180+1"]
[EndTime "8:06:40 PDT"]
[Termination "Angry_Twin won by resignation"]

1. e4 {[%clk 0:02:59.8]} 1... c5 {[%clk 0:02:56.4]} 2. Nf3 {[%clk 0:02:59.4]}
2... d6 {[%clk 0:02:57.1]} 3. d4 {[%clk 0:02:59]} 3... cxd4 {[%clk 0:02:58]} 4.
Nxd4 {[%clk 0:02:59.9]} 4... Nf6 {[%clk 0:02:58.3]} 5. Nc3 {[%clk 0:03:00.5]}
5... a6 {[%clk 0:02:58.9]} 6. Bg5 {[%clk 0:03:00.8]} 6... e6 {[%clk 0:02:59]} 7.
Qd2 {[%clk 0:02:58.7]} 7... h6 {[%clk 0:02:57.8]} 8. Bh4 {[%clk 0:02:55.9]} 8...
Nxe4 {[%clk 0:02:51.6]} 9. Bxd8 {[%clk 0:02:47.3]} 9... Nxd2 {[%clk 0:02:51.4]}
10. Kxd2 {[%clk 0:02:35.1]} 10... Kxd8 {[%clk 0:02:51.4]} 11. Rd1 {[%clk
0:02:35.6]} 11... Nc6 {[%clk 0:02:51.5]} 12. Kc1 {[%clk 0:02:31.6]} 12... Nxd4
{[%clk 0:02:47.5]} 13. Rxd4 {[%clk 0:02:32.4]} 13... d5 {[%clk 0:02:48.2]} 14.
Nd1 {[%clk 0:02:25.4]} 14... Bc5 {[%clk 0:02:47]} 15. Rd2 {[%clk 0:02:26]} 15...
Ke7 {[%clk 0:02:46.7]} 16. Bd3 {[%clk 0:02:22.1]} 16... b5 {[%clk 0:02:41]} 17.
Re1 {[%clk 0:02:22.3]} 17... Bb7 {[%clk 0:02:37.8]} 18. f4 {[%clk 0:02:19.6]}
18... Bd6 {[%clk 0:02:32.4]} 19. g3 {[%clk 0:02:19]} 19... Rac8 {[%clk
0:02:24.9]} 20. Ne3 {[%clk 0:02:18.5]} 20... Bc5 {[%clk 0:02:11.6]} 21. Ng4
{[%clk 0:01:55.7]} 21... Bb4 {[%clk 0:01:39.7]} 22. c3 {[%clk 0:01:55]} 22... d4
{[%clk 0:01:39.9]} 23. Rc2 {[%clk 0:01:21.4]} 23... dxc3 {[%clk 0:01:38.8]} 24.
bxc3 {[%clk 0:01:20.6]} 24... Rxc3 {[%clk 0:01:39.1]} 25. Rxc3 {[%clk
0:01:19.1]} 25... Bxc3 {[%clk 0:01:40]} 26. Rf1 {[%clk 0:01:14.3]} 26... Rc8
{[%clk 0:01:38.4]} 27. Kb1 {[%clk 0:01:14.1]} 27... h5 {[%clk 0:01:34.2]} 28.
Nf2 {[%clk 0:01:02.2]} 28... Bd4 {[%clk 0:01:27]} 29. Ne4 {[%clk 0:01:02.3]}
29... f6 {[%clk 0:01:21.9]} 30. Re1 {[%clk 0:00:59.4]} 30... Bd5 {[%clk
0:01:21.9]} 31. Bc2 {[%clk 0:00:57]} 31... a5 {[%clk 0:01:16.8]} 32. Rd1 {[%clk
0:00:56.8]} 32... Bb6 {[%clk 0:01:16.8]} 33. Re1 {[%clk 0:00:56.1]} 33... a4
{[%clk 0:01:14.4]} 34. Re2 {[%clk 0:00:42.5]} 34... Bd4 {[%clk 0:01:07.5]} 35.
Re1 {[%clk 0:00:38.2]} 35... a3 {[%clk 0:01:02]} 36. Bd3 {[%clk 0:00:35.7]}
36... b4 {[%clk 0:00:49]} 37. Re2 {[%clk 0:00:31.1]} 37... b3 {[%clk 0:00:40.4]}
0-1

[Event "Early-Titled-Tuesday-Blitz-March-26-2024"]
[Site "Chess.com"]
[Date "2024.03.26"]
[Round "1"]
[White "iAspet"]
[Black "MarcoRiehle"]
[Result "1/2-1/2"]
[WhiteElo "2466"]
[BlackElo "2804"]
[TimeControl "180+1"]
[EndTime "8:06:40 PDT"]
[Termination "Game drawn by repetition"]

1. d4 {[%clk 0:03:00.9]} 1... d5 {[%clk 0:02:59.6]} 2. c4 {[%clk 0:03:00.1]}
2... e6 {[%clk 0:03:00.2]} 3. Nc3 {[%clk 0:02:59.9]} 3... c5 {[%clk 0:02:59.8]}
4. Nf3 {[%clk 0:02:57.3]} 4... cxd4 {[%clk 0:02:59.3]} 5. Nxd4 {[%clk
0:02:57.2]} 5... e5 {[%clk 0:02:58.5]} 6. Nc2 {[%clk 0:02:42.1]} 6... d4 {[%clk
0:02:57.9]} 7. Nd5 {[%clk 0:02:42.1]} 7... Nf6 {[%clk 0:02:57.2]} 8. Bg5 {[%clk
0:02:33.4]} 8... Be6 {[%clk 0:02:55.6]} 9. Bxf6 {[%clk 0:02:30.9]} 9... gxf6
{[%clk 0:02:56.5]} 10. e4 {[%clk 0:02:29.9]} 10... dxe3 {[%clk 0:02:40.5]} 11.
Ncxe3 {[%clk 0:02:26.4]} 11... f5 {[%clk 0:02:35.6]} 12. Be2 {[%clk 0:02:13.5]}
12... f4 {[%clk 0:02:32.3]} 13. Nc2 {[%clk 0:02:08.7]} 13... Bxd5 {[%clk
0:02:25.7]} 14. cxd5 {[%clk 0:01:49.8]} 14... Qa5+ {[%clk 0:02:24.1]} 15. Qd2
{[%clk 0:01:48.9]} 15... Qxd2+ {[%clk 0:02:23.8]} 16. Kxd2 {[%clk 0:01:49.8]}
16... Nd7 {[%clk 0:02:23.6]} 17. g3 {[%clk 0:01:41.7]} 17... fxg3 {[%clk
0:02:20.3]} 18. hxg3 {[%clk 0:01:42.6]} 18... O-O-O {[%clk 0:02:19.8]} 19. Ne3
{[%clk 0:01:40.4]} 19... Bb4+ {[%clk 0:02:11.7]} 20. Kc2 {[%clk 0:01:34.5]}
20... Bc5 {[%clk 0:02:04.7]} 21. Rh6 {[%clk 0:01:21]} 21... Nb6 {[%clk
0:01:59.8]} 22. Rah1 {[%clk 0:00:39.1]} 22... Bxe3 {[%clk 0:01:56.7]} 23. fxe3
{[%clk 0:00:40]} 23... Nxd5 {[%clk 0:01:55.6]} 24. Rxh7 {[%clk 0:00:37.4]} 24...
Nxe3+ {[%clk 0:01:54.3]} 25. Kc3 {[%clk 0:00:35.8]} 25... Rxh7 {[%clk
0:01:51.6]} 26. Rxh7 {[%clk 0:00:36.7]} 26... f6 {[%clk 0:01:50.8]} 27. Bf3
{[%clk 0:00:30.1]} 27... Nd5+ {[%clk 0:01:49.6]} 28. Kc4 {[%clk 0:00:26.6]}
28... Nb6+ {[%clk 0:01:48.7]} 29. Kc3 {[%clk 0:00:26.6]} 29... Nd7 {[%clk
0:01:38.7]} 30. Rf7 {[%clk 0:00:25.9]} 30... Rf8 {[%clk 0:01:37]} 31. Re7 {[%clk
0:00:25.5]} 31... Kb8 {[%clk 0:01:33.2]} 32. Rxd7 {[%clk 0:00:25.2]} 32... Rg8
{[%clk 0:01:32.8]} 33. Rxb7+ {[%clk 0:00:25.1]} 33... Kc8 {[%clk 0:01:33.2]} 34.
Rf7 {[%clk 0:00:22.8]} 34... Rxg3 {[%clk 0:01:32.6]} 35. Rxf6 {[%clk 0:00:21.3]}
35... e4 {[%clk 0:01:32.9]} 36. Kd4 {[%clk 0:00:20.6]} 36... exf3 {[%clk
0:01:32.3]} 37. Ke3 {[%clk 0:00:21]} 37... Rg2 {[%clk 0:01:32.7]} 38. Rxf3
{[%clk 0:00:18.7]} 38... Rxb2 {[%clk 0:01:32.4]} 39. Rf2 {[%clk 0:00:19.4]}
39... Rb1 {[%clk 0:01:31.2]} 40. Kd4 {[%clk 0:00:19.1]} 40... Rc1 {[%clk
0:01:29.4]} 41. Kd3 {[%clk 0:00:18.9]} 41... Kb7 {[%clk 0:01:29.7]} 42. Rc2
{[%clk 0:00:19.5]} 42... Rh1 {[%clk 0:01:29.4]} 43. Kc3 {[%clk 0:00:19.5]} 43...
a5 {[%clk 0:01:30]} 44. Kb2 {[%clk 0:00:20]} 44... Kb6 {[%clk 0:01:30.4]} 45. a3
{[%clk 0:00:20.7]} 45... Kb5 {[%clk 0:01:30.5]} 46. Ka2 {[%clk 0:00:21.5]} 46...
Rh3 {[%clk 0:01:29.1]} 47. Rg2 {[%clk 0:00:21.4]} 47... Rh4 {[%clk 0:01:28.6]}
48. Rg5+ {[%clk 0:00:21.6]} 48... Ka4 {[%clk 0:01:28.7]} 49. Rg2 {[%clk
0:00:21.1]} 49... Re4 {[%clk 0:01:28.6]} 50. Rf2 {[%clk 0:00:21.4]} 50... Re3
{[%clk 0:01:28.6]} 51. Rf4+ {[%clk 0:00:21.2]} 51... Kb5 {[%clk 0:01:29.3]} 52.
Rf2 {[%clk 0:00:21.7]} 52... Rd3 {[%clk 0:01:27.2]} 53. Rf5+ {[%clk 0:00:22]}
53... Kc4 {[%clk 0:01:27.1]} 54. Rf4+ {[%clk 0:00:22.6]} 54... Kc3 {[%clk
0:01:27]} 55. Rf2 {[%clk 0:00:22.9]} 55... a4 {[%clk 0:01:26]} 56. Rh2 {[%clk
0:00:23]} 56... Rg3 {[%clk 0:01:25.9]} 57. Rf2 {[%clk 0:00:23]} 57... Rd3 {[%clk
0:01:24.6]} 58. Rh2 {[%clk 0:00:23.2]} 58... Kc4 {[%clk 0:01:24.6]} 59. Rh4+
{[%clk 0:00:23.4]} 59... Kc3 {[%clk 0:01:24.9]} 60. Rh2 {[%clk 0:00:23]} 1/2-1/2

[Event "Early-Titled-Tuesday-Blitz-March-26-2024"]
[Site "Chess.com"]
[Date "2024.03.26"]
[Round "1"]
[White "Massakru"]
[Black "Korchmar_Vasiliy"]
[Result "0-1"]
[WhiteElo "2361"]
[BlackElo "2700"]
[TimeControl "180+1"]
[EndTime "8:06:43 PDT"]
[Termination "Korchmar_Vasiliy won by checkmate"]

1. e4 {[%clk 0:03:00.9]} 1... c5 {[%clk 0:02:59.9]} 2. Nf3 {[%clk 0:03:00.7]}
2... d6 {[%clk 0:03:00.5]} 3. c3 {[%clk 0:03:01.1]} 3... Nf6 {[%clk 0:02:59.7]}
4. h3 {[%clk 0:03:01.4]} 4... g6 {[%clk 0:02:57.3]} 5. Bd3 {[%clk 0:03:01.4]}
5... Bg7 {[%clk 0:02:57.4]} 6. Bc2 {[%clk 0:03:01.7]} 6... O-O {[%clk
0:02:56.4]} 7. O-O {[%clk 0:03:01.8]} 7... e5 {[%clk 0:02:54]} 8. d4 {[%clk
0:03:00.3]} 8... cxd4 {[%clk 0:02:53.1]} 9. cxd4 {[%clk 0:03:01.2]} 9... exd4
{[%clk 0:02:53.5]} 10. Nxd4 {[%clk 0:03:02.1]} 10... Nc6 {[%clk 0:02:53.8]} 11.
Nxc6 {[%clk 0:03:02.3]} 11... bxc6 {[%clk 0:02:53.8]} 12. Nc3 {[%clk 0:03:01.8]}
12... d5 {[%clk 0:02:51.9]} 13. exd5 {[%clk 0:03:01.8]} 13... cxd5 {[%clk
0:02:52.7]} 14. Bg5 {[%clk 0:02:56.6]} 14... Be6 {[%clk 0:02:50.6]} 15. Qd2
{[%clk 0:02:52.7]} 15... d4 {[%clk 0:02:44.7]} 16. Ne4 {[%clk 0:02:50.2]} 16...
Rb8 {[%clk 0:02:42.4]} 17. b3 {[%clk 0:02:46.2]} 17... Nxe4 {[%clk 0:02:39.7]}
18. Bxe4 {[%clk 0:02:45.5]} 18... Qb6 {[%clk 0:02:38.1]} 19. Rac1 {[%clk
0:02:38.5]} 19... a5 {[%clk 0:02:26.2]} 20. Rc6 {[%clk 0:02:35.8]} 20... Qb5
{[%clk 0:02:24.7]} 21. Rfc1 {[%clk 0:02:17.7]} 21... a4 {[%clk 0:02:08.5]} 22.
R6c5 {[%clk 0:02:03.6]} 22... Qb4 {[%clk 0:01:40.6]} 23. Qxb4 {[%clk 0:01:51.3]}
23... Rxb4 {[%clk 0:01:41.5]} 24. Bd2 {[%clk 0:01:51.3]} 24... Rbb8 {[%clk
0:01:39]} 25. bxa4 {[%clk 0:01:49]} 25... d3 {[%clk 0:01:06.4]} 26. Bd5 {[%clk
0:01:41.5]} 26... Rb2 {[%clk 0:01:00.4]} 27. Rd1 {[%clk 0:01:39.1]} 27... Bd4
{[%clk 0:00:54.1]} 28. Ra5 {[%clk 0:01:27]} 28... Rxd2 {[%clk 0:00:52.8]} 29.
Rxd2 {[%clk 0:01:25.9]} 29... Bc3 {[%clk 0:00:53]} 30. Rxd3 {[%clk 0:01:18.4]}
30... Bxa5 {[%clk 0:00:51.6]} 31. Bxe6 {[%clk 0:01:14.8]} 31... fxe6 {[%clk
0:00:52.5]} 32. Rd6 {[%clk 0:01:12.8]} 32... Rf4 {[%clk 0:00:44.8]} 33. Rxe6
{[%clk 0:01:09.2]} 33... Rxa4 {[%clk 0:00:44.9]} 34. Re2 {[%clk 0:01:09.8]}
34... Bc3 {[%clk 0:00:40.2]} 35. g3 {[%clk 0:01:06.7]} 35... Rb4 {[%clk
0:00:39]} 36. Re3 {[%clk 0:01:03.3]} 36... Bd4 {[%clk 0:00:37.6]} 37. Rd3 {[%clk
0:01:03.5]} 37... Kf7 {[%clk 0:00:27.8]} 38. Kf1 {[%clk 0:01:03.6]} 38... Ke6
{[%clk 0:00:27.5]} 39. a3 {[%clk 0:01:03.8]} 39... Rc4 {[%clk 0:00:26.2]} 40.
Ke2 {[%clk 0:01:03.2]} 40... Ke5 {[%clk 0:00:26.8]} 41. Kf3 {[%clk 0:01:01.6]}
41... Rc2 {[%clk 0:00:25]} 42. Kg4 {[%clk 0:00:55.9]} 42... Rxf2 {[%clk
0:00:24.1]} 43. Kg5 {[%clk 0:00:54.3]} 43... Rf5+ {[%clk 0:00:24.3]} 44. Kg4
{[%clk 0:00:49.5]} 44... Ke4 {[%clk 0:00:24.7]} 45. Rb3 {[%clk 0:00:47.8]} 45...
h5+ {[%clk 0:00:25.3]} 46. Kh4 {[%clk 0:00:46.7]} 46... Bf6# {[%clk 0:00:26.2]}
0-1

[Event "Early-Titled-Tuesday-Blitz-March-26-2024"]
[Site "Chess.com"]
[Date "2024.03.26"]
[Round "1"]
[White "PapaieDudu"]
[Black "Sattarov_Bobur"]
[Result "0-1"]
[WhiteElo "2461"]
[BlackElo "2829"]
[TimeControl "180+1"]
[EndTime "8:06:44 PDT"]
[Termination "Sattarov_Bobur won on time"]

1. Nf3 {[%clk 0:02:49.1]} 1... Nf6 {[%clk 0:02:54.1]} 2. d4 {[%clk 0:02:48.8]}
2... g6 {[%clk 0:02:53.7]} 3. c4 {[%clk 0:02:48.8]} 3... Bg7 {[%clk 0:02:54.1]}
4. Nc3 {[%clk 0:02:48.5]} 4... O-O {[%clk 0:02:54]} 5. e3 {[%clk 0:02:48.2]}
5... d5 {[%clk 0:02:52.5]} 6. Bd3 {[%clk 0:02:48.3]} 6... dxc4 {[%clk
0:02:51.6]} 7. Bxc4 {[%clk 0:02:48.2]} 7... c5 {[%clk 0:02:52.2]} 8. dxc5 {[%clk
0:02:48]} 8... Qa5 {[%clk 0:02:51]} 9. O-O {[%clk 0:02:47.2]} 9... Qxc5 {[%clk
0:02:51.1]} 10. Qe2 {[%clk 0:02:46.6]} 10... Nc6 {[%clk 0:02:49.4]} 11. h3
{[%clk 0:02:45]} 11... Rd8 {[%clk 0:02:42.4]} 12. e4 {[%clk 0:02:41.9]} 12... e6
{[%clk 0:02:27.9]} 13. Be3 {[%clk 0:02:38.1]} 13... Qa5 {[%clk 0:02:26.5]} 14.
Rad1 {[%clk 0:02:26.8]} 14... Bd7 {[%clk 0:02:25.4]} 15. a3 {[%clk 0:02:24.2]}
15... Be8 {[%clk 0:02:23.4]} 16. Bg5 {[%clk 0:01:56.8]} 16... h6 {[%clk
0:02:22.1]} 17. Bh4 {[%clk 0:01:55.2]} 17... Rxd1 {[%clk 0:02:13.9]} 18. Rxd1
{[%clk 0:01:53.7]} 18... Rc8 {[%clk 0:02:13.9]} 19. Bb3 {[%clk 0:01:48.4]} 19...
Ne5 {[%clk 0:02:09]} 20. Nxe5 {[%clk 0:01:45.2]} 20... Qxe5 {[%clk 0:02:09.9]}
21. Bg3 {[%clk 0:01:39.9]} 21... Qh5 {[%clk 0:02:09]} 22. Qe3 {[%clk 0:01:35]}
22... a6 {[%clk 0:02:03.1]} 23. Qb6 {[%clk 0:01:31.9]} 23... Bc6 {[%clk
0:02:00]} 24. Rd8+ {[%clk 0:01:28.1]} 24... Rxd8 {[%clk 0:01:59.9]} 25. Qxd8+
{[%clk 0:01:24.9]} 25... Kh7 {[%clk 0:02:00.8]} 26. Qe7 {[%clk 0:00:59.5]} 26...
Kg8 {[%clk 0:01:45.8]} 27. Qd8+ {[%clk 0:00:53.7]} 27... Ne8 {[%clk 0:01:44.8]}
28. Qe7 {[%clk 0:00:43.2]} 28... Bf8 {[%clk 0:01:23.5]} 29. Qh4 {[%clk
0:00:35.7]} 29... Qa5 {[%clk 0:01:19.1]} 30. Kh2 {[%clk 0:00:21.7]} 30... Qb6
{[%clk 0:01:18.4]} 31. Bxe6 {[%clk 0:00:07.3]} 31... fxe6 {[%clk 0:01:17.9]} 32.
Qg4 {[%clk 0:00:07.8]} 32... Kf7 {[%clk 0:00:54.9]} 33. Be5 {[%clk 0:00:08.4]}
33... Qxf2 {[%clk 0:00:49.3]} 34. Bg3 {[%clk 0:00:02.7]} 34... Qf1 {[%clk
0:00:47.1]} 0-1

[Event "Early-Titled-Tuesday-Blitz-March-26-2024"]
[Site "Chess.com"]
[Date "2024.03.26"]
[Round "1"]
[White "Oligan22"]
[Black "nikitakhoroshev"]
[Result "1-0"]
[WhiteElo "2414"]
[BlackElo "2677"]
[TimeControl "180+1"]
[EndTime "8:06:48 PDT"]
[Termination "Oligan22 won by checkmate"]

1. e4 {[%clk 0:03:00.9]} 1... e5 {[%clk 0:02:59.2]} 2. Nf3 {[%clk 0:03:00.5]}
2... Nc6 {[%clk 0:02:59.3]} 3. d4 {[%clk 0:02:59.1]} 3... exd4 {[%clk
0:02:58.9]} 4. Nxd4 {[%clk 0:03:00]} 4... Qf6 {[%clk 0:02:59]} 5. Nb3 {[%clk
0:02:54.7]} 5... Qg6 {[%clk 0:02:58.7]} 6. Nc3 {[%clk 0:02:52.7]} 6... Bb4
{[%clk 0:02:58.3]} 7. Qf3 {[%clk 0:02:36.2]} 7... d6 {[%clk 0:02:51.1]} 8. Bd2
{[%clk 0:02:23.6]} 8... f5 {[%clk 0:02:48]} 9. Nd5 {[%clk 0:02:06.8]} 9... Bxd2+
{[%clk 0:02:41.3]} 10. Nxd2 {[%clk 0:02:07.7]} 10... Kd8 {[%clk 0:02:17.1]} 11.
O-O-O {[%clk 0:02:03.5]} 11... Ne5 {[%clk 0:02:14.8]} 12. Qc3 {[%clk 0:01:55.1]}
12... Qf7 {[%clk 0:02:10.1]} 13. f4 {[%clk 0:01:42.9]} 13... Ng4 {[%clk
0:02:03.7]} 14. Bc4 {[%clk 0:01:42.9]} 14... Be6 {[%clk 0:02:01.7]} 15. exf5
{[%clk 0:01:00.6]} 15... Bxd5 {[%clk 0:01:32.7]} 16. Bxd5 {[%clk 0:01:01.5]}
16... Qxd5 {[%clk 0:01:32.9]} 17. Qxg7 {[%clk 0:01:01.8]} 17... N4f6 {[%clk
0:01:27.6]} 18. Qxh8 {[%clk 0:00:49.7]} 18... Qf7 {[%clk 0:01:25.7]} 19. Nf3
{[%clk 0:00:50.3]} 19... Kc8 {[%clk 0:01:18.7]} 20. Ng5 {[%clk 0:00:43.8]} 20...
Qd7 {[%clk 0:01:13.7]} 21. Rhe1 {[%clk 0:00:36.6]} 21... b6 {[%clk 0:01:10.1]}
22. Ne6 {[%clk 0:00:33]} 22... Kb7 {[%clk 0:00:51.4]} 23. Qg7 {[%clk 0:00:33]}
23... Qc6 {[%clk 0:00:50.4]} 24. Re3 {[%clk 0:00:26.9]} 24... Rc8 {[%clk
0:00:49.6]} 25. Rc3 {[%clk 0:00:26.2]} 25... Qd7 {[%clk 0:00:37.9]} 26. Qxd7
{[%clk 0:00:23.2]} 26... Nxd7 {[%clk 0:00:38.1]} 27. g4 {[%clk 0:00:22.2]} 27...
Ne7 {[%clk 0:00:37.5]} 28. Rh3 {[%clk 0:00:20.9]} 28... Rh8 {[%clk 0:00:36.7]}
29. Rh6 {[%clk 0:00:20.7]} 29... c6 {[%clk 0:00:35.5]} 30. Re1 {[%clk 0:00:21]}
30... Nd5 {[%clk 0:00:35.6]} 31. c4 {[%clk 0:00:19.6]} 31... N5f6 {[%clk
0:00:33.3]} 32. h3 {[%clk 0:00:18.9]} 32... d5 {[%clk 0:00:32.2]} 33. Ng5 {[%clk
0:00:18.7]} 33... Ne4 {[%clk 0:00:31.6]} 34. Nxe4 {[%clk 0:00:18.2]} 34... dxe4
{[%clk 0:00:32.5]} 35. Rxe4 {[%clk 0:00:18.7]} 35... Nc5 {[%clk 0:00:32.2]} 36.
Re7+ {[%clk 0:00:18.6]} 36... Ka6 {[%clk 0:00:31.1]} 37. Rhxh7 {[%clk
0:00:18.9]} 37... Rd8 {[%clk 0:00:30.4]} 38. Rxa7# {[%clk 0:00:19]} 1-0

[Event "Early-Titled-Tuesday-Blitz-March-26-2024"]
[Site "Chess.com"]
[Date "2024.03.26"]
[Round "1"]
[White "chess_blitz00"]
[Black "Sanan_Sjugirov"]
[Result "0-1"]
[WhiteElo "2535"]
[BlackElo "3022"]
[TimeControl "180+1"]
[EndTime "8:06:50 PDT"]
[Termination "Sanan_Sjugirov won by resignation"]

1. e4 {[%clk 0:03:00.9]} 1... c5 {[%clk 0:02:59.3]} 2. Nf3 {[%clk 0:03:01]} 2...
Nc6 {[%clk 0:02:59.9]} 3. Bb5 {[%clk 0:03:00.2]} 3... g6 {[%clk 0:02:59.9]} 4.
Bxc6 {[%clk 0:02:59.8]} 4... bxc6 {[%clk 0:03:00.3]} 5. O-O {[%clk 0:02:59.1]}
5... Bg7 {[%clk 0:03:00.7]} 6. c3 {[%clk 0:02:55.9]} 6... Nf6 {[%clk 0:02:59.8]}
7. Re1 {[%clk 0:02:54.7]} 7... O-O {[%clk 0:02:55.4]} 8. d4 {[%clk 0:02:44.8]}
8... d5 {[%clk 0:02:55]} 9. e5 {[%clk 0:02:41.7]} 9... Ne4 {[%clk 0:02:54.3]}
10. h3 {[%clk 0:02:33.9]} 10... cxd4 {[%clk 0:02:48.8]} 11. cxd4 {[%clk
0:02:33.9]} 11... f6 {[%clk 0:02:49.4]} 12. exf6 {[%clk 0:02:34]} 12... exf6
{[%clk 0:02:41.7]} 13. Nc3 {[%clk 0:02:25.3]} 13... Re8 {[%clk 0:02:38.2]} 14.
Bf4 {[%clk 0:02:19.6]} 14... g5 {[%clk 0:02:37]} 15. Bh2 {[%clk 0:02:15.9]}
15... Bf5 {[%clk 0:02:31.8]} 16. Qa4 {[%clk 0:02:12.8]} 16... Qd7 {[%clk
0:02:29.2]} 17. Rac1 {[%clk 0:02:06.2]} 17... Rac8 {[%clk 0:02:18]} 18. Nxe4
{[%clk 0:01:49.8]} 18... dxe4 {[%clk 0:02:01.4]} 19. Nd2 {[%clk 0:01:47.3]}
19... Bg6 {[%clk 0:02:02]} 20. Nb3 {[%clk 0:01:31.7]} 20... f5 {[%clk
0:01:57.4]} 21. Nc5 {[%clk 0:01:32]} 21... Qf7 {[%clk 0:01:55.8]} 22. h4 {[%clk
0:01:04.8]} 22... h6 {[%clk 0:01:55]} 23. hxg5 {[%clk 0:01:04.7]} 23... hxg5
{[%clk 0:01:55.9]} 24. Be5 {[%clk 0:01:00.2]} 24... Bxe5 {[%clk 0:01:51.9]} 25.
dxe5 {[%clk 0:01:01.1]} 25... Rxe5 {[%clk 0:01:52.3]} 26. Red1 {[%clk
0:00:58.3]} 26... Rd5 {[%clk 0:01:39.7]} 27. Nb3 {[%clk 0:00:47.6]} 27... f4
{[%clk 0:01:31.5]} 28. Rxd5 {[%clk 0:00:42.7]} 28... Qxd5 {[%clk 0:01:32.4]} 29.
Qxa7 {[%clk 0:00:39.4]} 29... Re8 {[%clk 0:01:23]} 30. Qd4 {[%clk 0:00:17.6]}
30... e3 {[%clk 0:01:12.2]} 31. fxe3 {[%clk 0:00:15.1]} 31... fxe3 {[%clk
0:01:12.2]} 32. Qxd5+ {[%clk 0:00:06.2]} 32... cxd5 {[%clk 0:01:13.1]} 33. Nd4
{[%clk 0:00:06.4]} 33... Bd3 {[%clk 0:01:05.6]} 34. Re1 {[%clk 0:00:06.6]} 34...
Re4 {[%clk 0:01:01.9]} 35. Nf3 {[%clk 0:00:06.9]} 35... g4 {[%clk 0:00:59.9]}
36. Nh2 {[%clk 0:00:06.2]} 36... d4 {[%clk 0:00:57.5]} 37. Nf1 {[%clk 0:00:06]}
37... Bxf1 {[%clk 0:00:56.3]} 38. Kxf1 {[%clk 0:00:06.6]} 38... d3 {[%clk
0:00:56.7]} 39. Rc1 {[%clk 0:00:05.5]} 39... Rf4+ {[%clk 0:00:51.1]} 40. Ke1
{[%clk 0:00:04.8]} 40... d2+ {[%clk 0:00:51.4]} 41. Ke2 {[%clk 0:00:04.4]} 41...
dxc1=Q {[%clk 0:00:51.2]} 0-1